fUST/lending_fUST_20250613
["ID","MTS","AMOUNT","RATE_DAILY","PERIOD"]
[365653273,1749820242069,-3000.0,0.0002284,2]
[365653275,1749820242079,-3000.0,0.0002285,2]
[365653277,1749820242089,-3000.0,0.0002286,2]
[365653279,1749820242098,-3000.0,0.0002287,2]
[365653281,1749820242108,-3000.0,0.0002288,2]
[365653283,1749820242119,-722.06295471,0.00022882,2]
[365653285,1749820242130,-500.0,0.00022888,2]
[365653286,1749820242140,-3000.0,0.0002289,2]
[365653287,1749820242150,-3000.0,0.000229,2]
[365653288,1749820242160,-3000.0,0.0002291,2]
[365653289,1749820242170,-3000.0,0.0002292,2]
[365653290,1749820242179,-3000.0,0.0002293,2]
[365653291,1749820242188,-3000.0,0.0002294,2]
[365653292,1749820242198,-520.0,0.00022941,2]
[365653293,1749820242207,-3000.0,0.0002295,2]
[365653294,1749820242217,-3000.0,0.0002296,2]
[365653295,1749820242227,-1045.51686988,0.00022969,2]
[365653296,1749820242237,-3000.0,0.0002297,2]
[365653297,1749820242246,-3000.0,0.0002298,2]
[365653298,1749820242256,-3000.0,0.0002299,2]
[365653299,1749820242266,-3000.0,0.00023,2]
[365653300,1749820242276,-1000.0,0.00023,23]
[365653301,1749820242286,-160.0,0.00023,3]
[365653302,1749820242296,-160.0,0.00023,3]
[365653303,1749820242306,-835.28007164,0.00023,3]
[365653304,1749820242316,-229.78555783,0.00023,3]
[365653305,1749820242325,-424.32678023,0.00023,3]
[365653306,1749820242335,-3000.0,0.0002301,2]
[365653307,1749820242345,-460.0,0.00023013,2]
[365653308,1749820242355,-460.0,0.00023013,4]
[365653309,1749820242365,-833.33,0.00023013,4]
[365653310,1749820242374,-460.0,0.00023013,4]
[365653311,1749820242383,-1200.66,0.00023013,4]
[365653312,1749820242393,-968.36,0.00023013,4]
[365653313,1749820242403,-565.31,0.00023013,4]
[365653315,1749820242412,-1196.02,0.00023013,4]
[365653317,1749820242421,-460.0,0.00023013,4]
[365653319,1749820242431,-460.0,0.00023013,4]
[365653321,1749820242441,-460.0,0.00023013,4]
[365653323,1749820242450,-180.0,0.00023013,4]
[365653325,1749820242459,-579.04,0.00023013,4]
[365653327,1749820242470,-601.81,0.00023013,4]
[365653329,1749820242479,-547.81,0.00023013,4]
[365653331,1749820242489,-2427.65,0.00023013,4]
[365653333,1749820242499,-755.79,0.00023013,4]
[365653335,1749820242508,-599.64,0.00023013,4]
[365653337,1749820242517,-251.84,0.00023013,4]
[365653339,1749820242527,-1943.53,0.00023013,4]
[365653341,1749820242536,-969.63,0.00023013,4]
[365653344,1749820242545,-460.0,0.00023013,4]
[365653346,1749820242555,-913.71,0.00023013,4]
[365653349,1749820242565,-280.0,0.00023013,4]
[365653351,1749820242575,-975.47,0.00023013,4]
[365653354,1749820242584,-1506.8,0.00023013,4]
[365653356,1749820242594,-492.0,0.00023013,4]
[365653358,1749820242604,-3190.128608,0.0002302,2]
[365653360,1749820242615,-1000.0,0.00023048,2]
[365653362,1749820242625,-1000.0,0.00023048,2]
[365653364,1749820242635,-365.2062734,0.00023068,2]
[365653366,1749820242645,-365.2062734,0.00023068,2]
[365653368,1749820242655,-365.2062734,0.00023068,2]
[365653370,1749820242664,-365.2062734,0.00023096,2]
[365653372,1749820242674,-365.2062734,0.00023096,2]
[365653374,1749820242683,-365.2062734,0.00023096,2]
[365653376,1749820242693,-365.2062734,0.00023096,2]
[365653378,1749820242703,-365.2062734,0.00023096,2]
[365653380,1749820242712,-364.0267413,0.00023096,2]
[365653382,1749820242722,-365.2062734,0.00023096,2]
[365653384,1749820242731,-500.0,0.00023156,2]
[365653386,1749820242741,-150.119,0.00023165,2]
[365653388,1749820242751,-225.78007072,0.00023182,2]
[365653390,1749820242761,-365.2062734,0.00023205,2]
[365653392,1749820242771,-520.0,0.00023271,2]
[365653394,1749820242782,-460.0,0.00023287,2]
[365653396,1749820242792,-460.0,0.00023287,4]
[365653398,1749820242802,-833.33,0.00023287,4]
[365653400,1749820242811,-336.9174046,0.00023287,4]
[365653402,1749820242821,-1200.66,0.00023287,4]
[365653404,1749820242833,-968.36,0.00023287,4]
[365653406,1749820242843,-565.31,0.00023287,4]
[365653408,1749820242853,-1196.02,0.00023287,4]
[365653411,1749820242865,-460.0,0.00023287,4]
[365653413,1749820242877,-460.0,0.00023287,4]
[365653415,1749820242889,-460.0,0.00023287,4]
[365653417,1749820242898,-579.04,0.00023287,4]
[365653419,1749820242907,-601.81,0.00023287,4]
[365653420,1749820242917,-547.81,0.00023287,4]
[365653423,1749820242928,-2427.65,0.00023287,4]
[365653425,1749820242938,-755.79,0.00023287,4]
[365653427,1749820242950,-599.64,0.00023287,4]
[365653429,1749820242960,-1943.53,0.00023287,4]
[365653431,1749820242970,-969.63,0.00023287,4]
[365653433,1749820242980,-460.0,0.00023287,4]
[365653435,1749820242989,-913.71,0.00023287,4]
[365653437,1749820242998,-975.47,0.00023287,4]
[365653439,1749820243008,-1506.8,0.00023287,4]
[365653441,1749820243018,-492.0,0.00023287,4]
[365653443,1749820243027,-764.78445052,0.00023315,2]
[365653445,1749820243036,-2211.753322,0.00023324,3]
[365653447,1749820243047,-500.0,0.00023337,2]
[365653449,1749820243056,-1000.0,0.00023359,2]
[365653450,1749820243066,-1000.0,0.00023359,2]
[365653452,1749820243076,-1000.0,0.00023359,2]
[365653454,1749820243084,-1000.0,0.00023359,2]
[365653456,1749820243094,-1200.0,0.00023359,2]
[365653458,1749820243103,-1146.9306008,0.0002337,2]
[365653460,1749820243115,-306.0,0.0002337,2]
[365653462,1749820243125,-176.9539549,0.0002337,2]
[365653465,1749820243134,-173.8229212,0.0002337,2]
[365653467,1749820243144,-158.5050251,0.0002337,2]
[365653469,1749820243153,-153.0,0.0002337,2]
[365653470,1749820243162,-955.9333123,0.0002337,2]
[365653472,1749820243171,-158.8399287,0.0002337,2]
[365653474,1749820243181,-176.9539549,0.0002337,2]
[365653476,1749820243190,-153.0,0.0002337,2]
[365653478,1749820243200,-153.0,0.0002337,2]
[365653480,1749820243209,-158.8399287,0.0002337,2]
[365653482,1749820243219,-176.9539549,0.0002337,2]
[365653485,1749820243229,-153.0,0.0002337,2]
[365653487,1749820243238,-158.8399287,0.0002337,2]
[365653488,1749820243248,-153.0,0.0002337,2]
[365653491,1749820243257,-153.0,0.0002337,2]
[365653492,1749820243267,-153.0,0.0002337,2]
[365653495,1749820243277,-153.0,0.0002337,2]
[365653497,1749820243286,-153.0,0.0002337,2]
[365653499,1749820243296,-573.3540349,0.0002337,2]
[365653501,1749820243305,-500.0,0.00023435,2]
[365653503,1749820243315,-153.0,0.00023479,2]
[365653504,1749820243324,-153.0,0.00023479,2]
[365653507,1749820243334,-587.0,0.00023514,2]
[365653508,1749820243343,-460.0,0.00023561,2]
[365653510,1749820243352,-460.0,0.00023561,4]
[365653512,1749820243362,-833.33,0.00023561,4]
[365653515,1749820243374,-1200.66,0.00023561,4]
[365653517,1749820243383,-968.36,0.00023561,4]
[365653519,1749820243393,-565.31,0.00023561,4]
[365653521,1749820243402,-1196.02,0.00023561,4]
[365653523,1749820243412,-460.0,0.00023561,4]
[365653525,1749820243421,-460.0,0.00023561,4]
[365653527,1749820243431,-460.0,0.00023561,4]
[365653529,1749820243441,-579.04,0.00023561,4]
[365653531,1749820243451,-601.81,0.00023561,4]
[365653533,1749820243460,-547.81,0.00023561,4]
[365653535,1749820243470,-2427.65,0.00023561,4]
[365653537,1749820243480,-755.79,0.00023561,4]
[365653539,1749820243489,-599.64,0.00023561,4]
[365653541,1749820243499,-1943.53,0.00023561,4]
[365653543,1749820243508,-969.63,0.00023561,4]
[365653545,1749820243517,-460.0,0.00023561,4]
[365653547,1749820243526,-913.71,0.00023561,4]
[365653549,1749820243535,-975.47,0.00023561,4]
[365653551,1749820243545,-1506.8,0.00023561,4]
[365653553,1749820243554,-492.0,0.00023561,4]
[365653555,1749820243565,-1500.0,0.00023596,2]
[365653557,1749820243574,-1500.0,0.00023596,2]
[365653559,1749820243583,-5888.0,0.00023603,2]
[365653561,1749820243592,-800.0,0.00023626,2]
[365653563,1749820243601,-800.0,0.00023627,2]
[365653565,1749820243610,-1045.51686988,0.00023627,2]
[365653567,1749820243620,-653.0,0.0002364,2]
[365653569,1749820243630,-800.0,0.00023644,2]
[365653571,1749820243639,-3000.0,0.000237,2]
[365653573,1749820243648,-3000.0,0.0002371,2]
[365653575,1749820243657,-3000.0,0.0002372,2]
[365653577,1749820243667,-800.0,0.00023727,2]
[365653589,1749820243761,-3000.0,0.0002373,2]
[365653591,1749820243771,-3000.0,0.0002374,2]
[365653593,1749820243780,-391.0,0.0002374,2]
[365653595,1749820243790,-3000.0,0.0002375,2]
[365653597,1749820243800,-225.78007072,0.0002375,2]
[365653599,1749820243809,-3000.0,0.0002376,2]
[365653601,1749820243819,-3000.0,0.0002377,2]
[365653603,1749820243831,-500.0,0.00023773,2]
[365653605,1749820243841,-12245.17395779,0.0002378,7]
[365653607,1749820243850,-3000.0,0.0002378,2]
[365653609,1749820243860,-3000.0,0.0002379,2]
[365653611,1749820243871,-200.5,0.0002379,3]
[365653613,1749820243883,-317.0,0.0002379,3]
[365653615,1749820243893,-317.0,0.0002379,3]
[365653617,1749820243902,-317.0,0.0002379,3]
[365653619,1749820243912,-317.0,0.0002379,3]
[365653621,1749820243923,-329.85445623,0.0002379,3]
[365653623,1749820243932,-440.0,0.00023799,4]
[365653625,1749820243941,-440.0,0.00023799,4]
[365653627,1749820243951,-23008.45870925,0.000238,3]
[365653629,1749820243963,-151.0,0.000238,7]
[365653631,1749820243975,-151.0,0.000238,7]
[365653633,1749820243984,-151.0,0.000238,7]
[365653635,1749820243994,-151.0,0.000238,7]
[365653637,1749820244003,-151.0,0.000238,7]
[365653639,1749820244013,-151.0,0.000238,7]
[365653641,1749820244023,-151.0,0.000238,7]
[365653643,1749820244034,-151.0,0.000238,7]
[365653645,1749820244046,-151.0,0.000238,7]
[365653647,1749820244058,-151.0,0.000238,7]
[365653649,1749820244071,-151.0,0.000238,7]
[365653651,1749820244081,-151.0,0.000238,7]
[365653653,1749820244091,-151.0,0.000238,7]
[365653655,1749820244100,-151.610522,0.000238,7]
[365653657,1749820244109,-151.0,0.000238,7]
[365653659,1749820244119,-151.0,0.000238,2]
[365653661,1749820244128,-3000.0,0.000238,2]
[365653663,1749820244138,-500.0,0.000238,2]
[365653665,1749820244147,-500.0,0.000238,2]
[365653667,1749820244156,-500.0,0.000238,2]
[365653669,1749820244166,-500.0,0.000238,2]
[365653671,1749820244175,-500.0,0.000238,2]
[365653673,1749820244184,-160.0,0.000238,3]
[365653675,1749820244193,-1000.0,0.000238,2]
[365653677,1749820244203,-250.0,0.000238,30]
[365653679,1749820244212,-229.78555783,0.000238,3]
[365653681,1749820244222,-500.0,0.000238,2]
[365653683,1749820244231,-595.97055251,0.000238,2]
[365653685,1749820244240,-424.32678023,0.000238,3]
[365653687,1749820244250,-1093.89,0.00023808,2]
[365653689,1749820244259,-3000.0,0.0002381,2]
[365653691,1749820244268,-160.0,0.00023818,5]
[365653693,1749820244278,-3000.0,0.0002382,2]
[365653695,1749820244288,-1000.0,0.00023821,2]
[365653697,1749820244297,-3000.0,0.0002383,2]
[365653699,1749820244307,-162.73,0.00023834,2]
[365653702,1749820244329,-460.0,0.00023835,2]
[365653704,1749820244339,-460.0,0.00023835,4]
[365653706,1749820244348,-833.33,0.00023835,4]
[365653708,1749820244358,-1200.66,0.00023835,4]
[365653710,1749820244367,-968.36,0.00023835,4]
[365653711,1749820244377,-565.31,0.00023835,4]
[365653714,1749820244387,-1196.02,0.00023835,4]
[365653716,1749820244396,-460.0,0.00023835,4]
[365653718,1749820244406,-460.0,0.00023835,4]
[365653720,1749820244415,-460.0,0.00023835,4]
[365653722,1749820244425,-579.04,0.00023835,4]
[365653724,1749820244435,-601.81,0.00023835,4]
[365653726,1749820244445,-547.81,0.00023835,4]
[365653728,1749820244455,-2427.65,0.00023835,4]
[365653730,1749820244464,-755.79,0.00023835,4]
[365653732,1749820244474,-599.64,0.00023835,4]
[365653734,1749820244484,-1943.53,0.00023835,4]
[365653736,1749820244493,-969.63,0.00023835,4]
[365653738,1749820244502,-556.6,0.00023835,4]
[365653740,1749820244512,-913.71,0.00023835,4]
[365653742,1749820244522,-975.47,0.00023835,4]
[365653744,1749820244532,-1506.8,0.00023835,4]
[365653746,1749820244543,-492.0,0.00023835,4]
[365653748,1749820244553,-3000.0,0.0002384,2]
[365653750,1749820244562,-3000.0,0.0002385,2]
[365653752,1749820244571,-3000.0,0.0002386,2]
[365653754,1749820244581,-3000.0,0.0002387,2]
[365653756,1749820244591,-756.81,0.00023875,6]
[365653758,1749820244600,-3000.0,0.0002388,2]
[365653760,1749820244609,-3000.0,0.0002389,2]
[365653762,1749820244619,-3000.0,0.000239,2]
[365653764,1749820244628,-1392.18,0.000239,31]
[365653766,1749820244638,-1392.18,0.000239,31]
[365653768,1749820244647,-1392.18,0.000239,31]
[365653770,1749820244656,-1392.18,0.000239,31]
[365653772,1749820244666,-1392.18,0.000239,31]
[365653774,1749820244676,-1392.18,0.000239,31]
[365653776,1749820244685,-1392.18,0.000239,31]
[365653778,1749820244694,-1392.18,0.000239,31]
[365653780,1749820244704,-1392.18,0.000239,31]
[365653782,1749820244713,-1392.18,0.000239,31]
[365653784,1749820244722,-1392.18,0.000239,31]
[365653786,1749820244731,-1392.18,0.000239,31]
[365653788,1749820244740,-1392.18,0.000239,31]
[365653790,1749820244749,-1392.18,0.000239,31]
[365653792,1749820244759,-1392.18,0.000239,31]
[365653794,1749820244768,-1392.18,0.000239,31]
[365653796,1749820244778,-1500.0,0.00023907,2]
[365653798,1749820244787,-1500.0,0.00023907,2]
[365653800,1749820244796,-1500.0,0.00023907,2]
[365653802,1749820244806,-1500.0,0.00023907,2]
[365653804,1749820244816,-1800.0,0.00023907,2]
[365653806,1749820244825,-3000.0,0.0002391,2]
[365653808,1749820244835,-16267.85095472,0.00023912,7]
[365653810,1749820244844,-3000.0,0.0002392,2]
[365653812,1749820244853,-3000.0,0.0002393,2]
[365653814,1749820244862,-3000.0,0.0002394,2]
[365653816,1749820244873,-3000.0,0.0002395,2]
[365653818,1749820244887,-456.9146712,0.00023956,3]
[365653820,1749820244897,-3000.0,0.0002396,2]
[365653822,1749820244906,-2200.0,0.00023963,2]
[365653824,1749820244916,-215.0738,0.00023968,2]
[365653826,1749820244927,-3000.0,0.0002397,2]
[365653828,1749820244939,-756.81,0.00023975,7]
[365653830,1749820244948,-3000.0,0.0002398,2]
[365653832,1749820244958,-364.0,0.00023985,2]
[365653834,1749820244967,-3000.0,0.0002399,2]
[365653836,1749820244976,-2000.0,0.00024,2]
[365653838,1749820244986,-2000.0,0.00024,2]
[365653840,1749820244995,-4309.39840801,0.00024,60]
[365653842,1749820245004,-10010.03909984,0.00024,2]
[365653844,1749820245013,-493.19616532,0.00024,60]
[365653846,1749820245023,-30013.0,0.00024,2]
[365653848,1749820245032,-6750.0,0.00024,2]
[365653850,1749820245042,-1321.97,0.00024,2]
[365653852,1749820245051,-21505.71113454,0.00024,2]
[365653855,1749820245061,-135910.58659914,0.00024,35]
[365653856,1749820245071,-160.0,0.00024,7]
[365653858,1749820245080,-160.0,0.00024,7]
[365653861,1749820245091,-2000.0,0.00024,2]
[365653862,1749820245100,-1258986.84856308,0.00024,3]
[365653882,1749820245207,-5841.65549456,0.00024,3]
[365653893,1749820245310,-2575.1,0.0002295,10]
[365653895,1749820245320,-365.2062734,0.00023068,2]
[365653897,1749820245330,-7059.6937266,0.00024,3]
[365653967,1749820245999,-428.6508463,0.00023532,2]
[365653969,1749820246009,-24224.10837477,0.00024,3]
[365654800,1749820308641,889.48012,0.00024992,60]
[365654813,1749820675669,160.954004,0.00013699,2]
[365654815,1749820765116,-182.272812,0.00020813,2]
[365654816,1749820765139,-500.0,0.00020964,2]
[365654817,1749820765304,-1000.0,0.00021,21]
[365654818,1749820765327,-500.0,0.00021073,2]
[365654819,1749820765348,-500.0,0.00021073,2]
[365654820,1749820765371,-300.0,0.00021094,2]
[365654821,1749820765393,-300.0,0.00021094,2]
[365654822,1749820765419,-1000.0,0.00021095,4]
[365654823,1749820765441,-460.0,0.00021095,4]
[365654824,1749820765464,-460.0,0.00021095,2]
[365654825,1749820765485,-460.0,0.00021095,4]
[365654826,1749820765507,-500.0,0.00021095,2]
[365654827,1749820765530,-500.0,0.00021095,2]
[365654828,1749820765554,-500.0,0.00021095,2]
[365654829,1749820765579,-500.0,0.00021095,2]
[365654830,1749820765603,-500.0,0.00021095,2]
[365654831,1749820765626,-167.68,0.00021095,2]
[365654832,1749820765649,-306.27,0.00021095,4]
[365654833,1749820765672,-486.11,0.00021095,4]
[365654834,1749820765696,-460.0,0.00021095,4]
[365654835,1749820765719,-460.0,0.00021095,4]
[365654836,1749820765744,-460.0,0.00021095,4]
[365654837,1749820765769,-458.82785527,0.00021095,4]
[365654838,1749820765791,-460.0,0.00021095,4]
[365654839,1749820765816,-460.0,0.00021095,4]
[365654840,1749820765838,-460.0,0.00021095,4]
[365654841,1749820765861,-440.0,0.00021095,4]
[365654842,1749820765883,-460.0,0.00021095,4]
[365654843,1749820765904,-440.0,0.00021095,4]
[365654844,1749820765928,-460.0,0.00021095,4]
[365654845,1749820765952,-858.83933273,0.00021095,4]
[365654854,1749821020450,152.254,0.00024981,60]
[365654872,1749821313847,371867.92807443,0.00024981,60]
[365654875,1749821342307,300.0,0.00017999,2]
[365654879,1749821402210,300.0,0.00017999,2]
[365654880,1749821412948,391.0,0.00017999,2]
[365654916,1749821432330,-1784.01859759,0.00018,2]
[365654917,1749821432345,-12362.44288328,0.00018,2]
[365654918,1749821433138,-163.82220355,0.00018,2]
[365654923,1749821438271,-22779.1386141,0.00018,2]
[365654924,1749821438281,-174.68143795,0.00018,2]
[365654925,1749821438292,-571.97631659,0.00018995,2]
[365654926,1749821438304,-2035.8042871,0.00019205,5]
[365654927,1749821438313,-179.24767,0.0001951,2]
[365654931,1749821438453,-420.0,0.00019639,2]
[365654932,1749821438463,-1997.84289726,0.0002,2]
[365654933,1749821438473,-24900.0,0.00020039,2]
[365654934,1749821438483,-505.4837933,0.00020167,2]
[365654935,1749821438492,-534.13547628,0.00020167,2]
[365654936,1749821438502,-1054.5546153,0.00020296,2]
[365654937,1749821438512,-243.277965,0.0002037,2]
[365654938,1749821438522,-1628.74046333,0.000205,3]
[365654939,1749821438531,-1628.74046315,0.000205,3]
[365654940,1749821438541,-1628.74046315,0.000205,3]
[365654941,1749821438551,-1628.74046315,0.000205,3]
[365654942,1749821438561,-1628.74046315,0.000205,3]
[365654943,1749821438570,-1628.74046315,0.000205,3]
[365654944,1749821438580,-1628.74046315,0.000205,3]
[365654945,1749821438590,-1628.74046315,0.000205,3]
[365654946,1749821438600,-257.14451014,0.00020554,2]
[365654947,1749821438610,-246.48482418,0.00020554,2]
[365654948,1749821438620,-500.0,0.00020554,2]
[365654949,1749821438630,-500.0,0.00020554,2]
[365654950,1749821438639,-500.0,0.00020554,2]
[365654951,1749821438649,-500.0,0.00020554,2]
[365654952,1749821438659,-500.0,0.00020554,2]
[365654953,1749821438669,-274.41976426,0.00020554,2]
[365654954,1749821438679,-1628.74046315,0.00020555,3]
[365654955,1749821438689,-1628.74046315,0.00020762,3]
[365654956,1749821438699,-500.0,0.00020964,2]
[365654957,1749821438708,-1628.74046315,0.00020969,4]
[365654958,1749821438719,-300.0,0.00021094,2]
[365654959,1749821438729,-360.0,0.00021095,4]
[365654960,1749821438739,-540.58,0.00021095,4]
[365654961,1749821438751,-460.0,0.00021095,2]
[365654962,1749821438763,-460.0,0.00021095,4]
[365654963,1749821438773,-460.0,0.00021095,4]
[365654964,1749821438783,-440.0,0.00021095,4]
[365654965,1749821438793,-465.85,0.00021095,4]
[365654966,1749821438802,-460.0,0.00021095,4]
[365654967,1749821438812,-460.0,0.00021095,4]
[365654968,1749821438822,-460.0,0.00021095,4]
[365654969,1749821438831,-460.0,0.00021095,4]
[365654970,1749821438842,-460.0,0.00021095,4]
[365654971,1749821438851,-1004.53,0.00021095,4]
[365654972,1749821438861,-460.0,0.00021095,4]
[365654973,1749821438870,-460.0,0.00021095,4]
[365654974,1749821438880,-280.0,0.00021095,4]
[365654975,1749821438890,-460.0,0.00021095,4]
[365654976,1749821438911,-264.16876526,0.00021095,4]
[365654977,1749821438921,-1628.74046315,0.00021176,4]
[365654978,1749821438931,-1490.22,0.00021192,10]
[365654979,1749821438941,-1792.40309458,0.00021202,2]
[365654980,1749821438951,-700.39,0.00021368,4]
[365654981,1749821438961,-564.88,0.00021368,4]
[365654982,1749821438971,-697.68,0.00021368,4]
[365654983,1749821438981,-460.0,0.00021368,4]
[365654984,1749821438991,-460.0,0.00021368,4]
[365654985,1749821439001,-460.0,0.00021368,4]
[365654986,1749821439011,-1380.34,0.00021368,4]
[365654987,1749821439021,-460.0,0.00021368,4]
[365654988,1749821439031,-460.0,0.00021368,4]
[365654989,1749821439042,-556.6,0.00021368,4]
[365654990,1749821439052,-609.67,0.00021368,4]
[365654991,1749821439062,-646.42,0.00021368,4]
[365654992,1749821439073,-609.14,0.00021368,4]
[365654993,1749821439084,-500.0,0.00021368,4]
[365654994,1749821439096,-460.0,0.00021368,4]
[365654995,1749821439106,-460.0,0.00021369,2]
[365654996,1749821439117,-460.0,0.00021369,4]
[365654997,1749821439127,-465.85,0.00021369,4]
[365654998,1749821439137,-460.0,0.00021369,4]
[365654999,1749821439148,-460.0,0.00021369,4]
[365655000,1749821439158,-460.0,0.00021369,4]
[365655001,1749821439168,-1004.53,0.00021369,4]
[365655002,1749821439178,-460.0,0.00021369,4]
[365655003,1749821439188,-460.0,0.00021369,4]
[365655004,1749821439199,-1628.74046315,0.00021383,5]
[365655005,1749821439210,-587.0,0.00021428,2]
[365655006,1749821439221,-1628.74046315,0.0002159,5]
[365655007,1749821439230,-2145.92,0.00021632,10]
[365655008,1749821439240,-1788.27,0.00021632,10]
[365655009,1749821439251,-700.39,0.00021642,4]
[365655010,1749821439261,-564.88,0.00021642,4]
[365655011,1749821439271,-159.488,0.00021642,2]
[365655012,1749821439281,-697.68,0.00021642,4]
[365655013,1749821439295,-460.0,0.00021642,4]
[365655014,1749821439306,-460.0,0.00021642,4]
[365655015,1749821439316,-460.0,0.00021642,4]
[365655016,1749821439327,-1380.34,0.00021642,4]
[365655017,1749821439340,-460.0,0.00021642,4]
[365655018,1749821439352,-609.67,0.00021642,4]
[365655019,1749821439363,-646.42,0.00021642,4]
[365655020,1749821439376,-609.14,0.00021642,4]
[365655021,1749821439389,-500.0,0.00021642,4]
[365655022,1749821439400,-460.0,0.00021642,4]
[365655023,1749821439410,-460.0,0.00021643,2]
[365655024,1749821439420,-460.0,0.00021643,4]
[365655025,1749821439430,-465.85,0.00021643,4]
[365655026,1749821439440,-460.0,0.00021643,4]
[365655027,1749821439451,-460.0,0.00021643,4]
[365655028,1749821439460,-460.0,0.00021643,4]
[365655029,1749821439470,-1004.53,0.00021643,4]
[365655030,1749821439481,-460.0,0.00021643,4]
[365655031,1749821439491,-336.9174046,0.00021643,4]
[365655032,1749821439501,-555.59796626,0.00021671,2]
[365655033,1749821439512,-505.91952875,0.00021731,2]
[365655034,1749821439522,-160.07782674,0.00021731,2]
[365655035,1749821439533,-501.46874494,0.00021731,2]
[365655036,1749821439543,-500.0,0.0002178,2]
[365655037,1749821439554,-1628.74046315,0.00021797,6]
[365655038,1749821439564,-1220.57,0.00021824,4]
[365655039,1749821439574,-460.0,0.00021824,4]
[365655040,1749821439584,-507.97057501,0.00021858,2]
[365655041,1749821439598,-176.29134077,0.0002187,2]
[365655042,1749821439608,-508.9242103,0.0002187,2]
[365655043,1749821439618,-893.87318291,0.00021896,2]
[365655044,1749821439629,-700.39,0.00021916,4]
[365655045,1749821439639,-564.88,0.00021916,4]
[365655046,1749821439649,-697.68,0.00021916,4]
[365655047,1749821439660,-460.0,0.00021916,4]
[365655048,1749821439670,-460.0,0.00021916,4]
[365655049,1749821439680,-460.0,0.00021916,4]
[365655050,1749821439690,-1380.34,0.00021916,4]
[365655051,1749821439700,-460.0,0.00021916,4]
[365655052,1749821439711,-609.67,0.00021916,4]
[365655053,1749821439720,-646.42,0.00021916,4]
[365655054,1749821439730,-609.14,0.00021916,4]
[365655055,1749821439740,-187.57,0.00021916,4]
[365655056,1749821439750,-460.0,0.00021917,2]
[365655057,1749821439760,-594.35026302,0.00021917,4]
[365655058,1749821439771,-465.85,0.00021917,4]
[365655059,1749821439781,-460.0,0.00021917,4]
[365655060,1749821439790,-460.0,0.00021917,4]
[365655061,1749821439800,-460.0,0.00021917,4]
[365655062,1749821439810,-1004.53,0.00021917,4]
[365655063,1749821439820,-460.0,0.00021917,4]
[365655064,1749821439830,-160.0,0.00021954,3]
[365655065,1749821439843,-229.74786395,0.00021961,2]
[365655066,1749821439853,-1000.0,0.00022,22]
[365655067,1749821439864,-1628.74046315,0.00022003,6]
[365655069,1749821439873,-160.0,0.0002202,2]
[365655070,1749821439883,-835.28007164,0.0002202,2]
[365655072,1749821439892,-844.94977992,0.0002202,2]
[365655073,1749821439903,-160.0,0.0002202,2]
[365655075,1749821439913,-424.32678023,0.0002202,2]
[365655077,1749821439922,-160.0,0.0002202,2]
[365655079,1749821439932,-1220.57,0.00022098,4]
[365655081,1749821439941,-460.0,0.00022098,4]
[365655083,1749821439951,-365.2062734,0.0002211,2]